fUSD/lending_fUSD_20260611
["ID","MTS","AMOUNT","RATE_DAILY","PERIOD"]
[424810537,1781177458000,-361.43074093,0.00027397,2]
[424810536,1781177458000,-151.0,0.00027394,7]
[424810532,1781177458000,-15000.0,0.00027388,2]
[424810528,1781177458000,-152.0,0.00027128,4]
[424810533,1781177458000,-4188.92557719,0.0002739,2]
[424810538,1781177458000,-476.37531509,0.00027397,2]
[424810540,1781177458000,-1500.0,0.00027397,2]
[424810541,1781177458000,-300.0,0.00027397,2]
[424810546,1781177458000,-427.152321,0.00027397,2]
[424810547,1781177458000,-427.152321,0.00027397,2]
[424810542,1781177458000,-151.0,0.00027397,2]
[424810545,1781177458000,-529.16,0.00027397,2]
[424810539,1781177458000,-2585.09455613,0.00027397,2]
[424810534,1781177458000,-8275.81131763,0.0002739,2]
[424810531,1781177458000,-208.73,0.00027359,7]
[424810543,1781177458000,-151.0,0.00027397,2]
[424810605,1781177459000,-155.06156419,0.0002744,7]
[424810602,1781177459000,-167.69840384,0.0002744,5]
[424810598,1781177459000,-191.85125379,0.0002744,7]
[424810599,1781177459000,-209.61213701,0.0002744,7]
[424810601,1781177459000,-194.02286035,0.0002744,7]
[424810600,1781177459000,-167.35765374,0.0002744,7]
[424810603,1781177459000,-250.77369293,0.0002744,7]
[424810604,1781177459000,-174.7973313,0.0002744,2]
[424810606,1781177459000,-152.1684078,0.0002744,7]
[424810612,1781177459000,-163.21374614,0.0002744,7]
[424810609,1781177459000,-164.67543184,0.0002744,7]
[424810608,1781177459000,-187.06592425,0.0002744,7]
[424810610,1781177459000,-159.73706677,0.0002744,7]
[424810613,1781177459000,-164.6635492,0.0002744,7]
[424810615,1781177459000,-217.06714273,0.0002744,7]
[424810611,1781177459000,-178.38584866,0.0002744,7]
[424810614,1781177459000,-163.87371191,0.0002744,7]
[424810617,1781177459000,-2000.0,0.00027449,30]
[424810597,1781177459000,-157.84635979,0.0002744,7]
[424810616,1781177459000,-2000.0,0.00027449,30]
[424810607,1781177459000,-211.67501413,0.0002744,7]
[424810596,1781177459000,-209.87229803,0.0002744,7]
[424810585,1781177459000,-240.87416947,0.00027403,3]
[424810589,1781177459000,-151.0,0.00027403,3]
[424810618,1781177459000,-2000.0,0.00027449,30]
[424810574,1781177459000,-625.07,0.00027397,2]
[424810575,1781177459000,-16175.99,0.00027397,10]
[424810577,1781177459000,-150.0,0.00027397,2]
[424810576,1781177459000,-13479.99,0.00027397,10]
[424810581,1781177459000,-201.93286098,0.00027399,2]
[424810578,1781177459000,-158.71838294,0.00027399,2]
[424810580,1781177459000,-301.97470022,0.00027399,2]
[424810579,1781177459000,-154.12265554,0.00027399,2]
[424810591,1781177459000,-151.0,0.00027403,3]
[424810586,1781177459000,-152.0,0.00027403,3]
[424810584,1781177459000,-233.5188934,0.00027399,2]
[424810582,1781177459000,-151.0,0.00027399,2]
[424810594,1781177459000,-207.32745082,0.0002744,7]
[424810587,1781177459000,-152.0,0.00027403,3]
[424810590,1781177459000,-151.0,0.00027403,3]
[424810588,1781177459000,-152.0,0.00027403,3]
[424810592,1781177459000,-177.88742079,0.0002744,7]
[424810593,1781177459000,-169.16513095,0.0002744,7]
[424810595,1781177459000,-226.31425017,0.0002744,7]
[424810583,1781177459000,-151.0,0.00027399,2]
[424810621,1781177459000,-204.90039627,0.000275,2]
[424810666,1781177459000,-599.60298507,0.00027946,2]
[424810619,1781177459000,-2000.0,0.00027449,30]
[424810644,1781177459000,-714.97,0.00027711,7]
[424810647,1781177459000,-1137.85203056,0.00027741,2]
[424810646,1781177459000,-285.0,0.00027737,2]
[424810649,1781177459000,-8421.78,0.00027766,120]
[424810651,1781177459000,-816.77,0.00027794,30]
[424810650,1781177459000,-361.43074093,0.00027789,2]
[424810653,1781177459000,-1075.71,0.00027835,2]
[424810657,1781177459000,-769.24,0.00027872,2]
[424810654,1781177459000,-1075.72,0.00027838,2]
[424810645,1781177459000,-816.77,0.00027733,2]
[424810661,1781177459000,-816.77,0.00027916,2]
[424810658,1781177459000,-714.96,0.00027872,2]
[424810655,1781177459000,-816.77,0.00027855,7]
[424810656,1781177459000,-398.0,0.0002786,2]
[424810662,1781177459000,-11364.0,0.00027918,2]
[424810663,1781177459000,-10308.5314,0.00027922,2]
[424810667,1781177459000,-151.0,0.00027946,2]
[424810664,1781177459000,-155.18434343,0.00027945,2]
[424810665,1781177459000,-217.15233878,0.00027945,2]
[424810620,1781177459000,-2000.0,0.00027449,30]
[424810660,1781177459000,-816.77,0.00027885,30]
[424810648,1781177459000,-816.77,0.00027763,7]
[424810659,1781177459000,-714.97,0.00027872,2]
[424810652,1781177459000,-816.77,0.00027824,2]
[424810624,1781177459000,-1075.72,0.00027507,30]
[424810643,1781177459000,-714.96,0.00027711,7]
[424810623,1781177459000,-1075.71,0.00027503,30]
[424810622,1781177459000,-500.0,0.000275,7]
[424810626,1781177459000,-769.24,0.0002755,30]
[424810625,1781177459000,-293.97,0.00027508,7]
[424810627,1781177459000,-714.96,0.0002755,30]
[424810630,1781177459000,-816.77,0.0002758,7]
[424810629,1781177459000,-714.97,0.0002755,30]
[424810632,1781177459000,-816.77,0.00027611,30]
[424810631,1781177459000,-361.43074093,0.00027593,2]
[424810628,1781177459000,-816.77,0.0002755,2]
[424810633,1781177459000,-816.77,0.00027641,2]
[424810642,1781177459000,-769.24,0.00027711,7]
[424810639,1781177459000,-1075.72,0.00027672,7]
[424810637,1781177459000,-167.07,0.00027671,13]
[424810640,1781177459000,-816.77,0.00027702,30]
[424810641,1781177459000,-15000.0,0.00027705,2]
[424810638,1781177459000,-816.77,0.00027672,7]
[424810634,1781177459000,-1075.71,0.00027669,7]
[424810635,1781177459000,-167.06,0.00027671,13]
[424810636,1781177459000,-167.06,0.00027671,13]
[424810696,1781177460000,-714.96,0.00028033,30]
[424810703,1781177460000,-816.74,0.0002813,7]
[424810697,1781177460000,-714.97,0.00028033,30]
[424810699,1781177460000,-816.73,0.00028068,30]
[424810698,1781177460000,-816.77,0.00028038,7]
[424810701,1781177460000,-816.73,0.00028099,2]
[424810702,1781177460000,-816.77,0.00028099,2]
[424810705,1781177460000,-1075.71,0.00028168,7]
[424810704,1781177460000,-816.95,0.0002813,7]
[424810700,1781177460000,-816.77,0.00028068,30]
[424810707,1781177460000,-361.43074093,0.0002818,2]
[424810720,1781177460000,-168.44,0.00028493,2]
[424810706,1781177460000,-1075.72,0.0002817,7]
[424810711,1781177460000,-167.06,0.00028219,13]
[424810716,1781177460000,-15000.0,0.00028343,2]
[424810709,1781177460000,-714.96,0.00028194,7]
[424810715,1781177460000,-1760.5,0.00028267,2]
[424810708,1781177460000,-769.24,0.00028194,7]
[424810712,1781177460000,-167.06,0.00028219,13]
[424810714,1781177460000,-8421.78,0.00028232,120]
[424810713,1781177460000,-167.07,0.00028219,13]
[424810718,1781177460000,-361.43074093,0.00028376,2]
[424810689,1781177460000,-284.91992931,0.00028,10]
[424810717,1781177460000,-769.24,0.00028355,2]
[424810695,1781177460000,-769.24,0.00028033,30]
[424810668,1781177460000,-721.12765534,0.00027946,2]
[424810691,1781177460000,-1075.71,0.00028002,30]
[424810721,1781177460000,-158.71838294,0.00028495,2]
[424810671,1781177460000,-154.12265554,0.00027947,2]
[424810673,1781177460000,-151.0,0.00027947,2]
[424810672,1781177460000,-209.40437684,0.00027947,2]
[424810669,1781177460000,-816.77,0.00027946,7]
[424810670,1781177460000,-158.71838294,0.00027947,2]
[424810675,1781177460000,-242.15909246,0.00027947,2]
[424810674,1781177460000,-151.0,0.00027947,2]
[424810677,1781177460000,-150.0,0.00027973,2]
[424810684,1781177460000,-487.18,0.00028,2]
[424810682,1781177460000,-160.0,0.00028,2]
[424810692,1781177460000,-1075.72,0.00028004,30]
[424810679,1781177460000,-361.43074093,0.00027984,2]
[424810681,1781177460000,-1898.80818981,0.00028,2]
[424810676,1781177460000,-350.0,0.00027948,10]
[424810683,1781177460000,-325.0,0.00028,2]
[424810678,1781177460000,-816.77,0.00027977,30]
[424810685,1781177460000,-487.17,0.00028,2]
[424810694,1781177460000,-647.0,0.0002802,11]
[424810686,1781177460000,-600.0,0.00028,2]
[424810690,1781177460000,-284.91992931,0.00028,30]
[424810693,1781177460000,-816.77,0.00028007,2]
[424810687,1781177460000,-215.95576085,0.00028,30]
[424810688,1781177460000,-215.95576085,0.00028,10]
[424810680,1781177460000,-2123.18,0.00028,7]
[424810726,1781177460000,-251.11897888,0.00028495,2]
[424810710,1781177460000,-714.97,0.00028194,7]
[424810725,1781177460000,-151.0,0.00028495,2]
[424810751,1781177460000,-159.2777381,0.00028736,7]
[424810759,1781177460000,-326.42749228,0.00028736,7]
[424810758,1781177460000,-356.77169732,0.00028736,7]
[424810756,1781177460000,-152.69819965,0.00028736,7]
[424810752,1781177460000,-304.33681561,0.00028736,7]
[424810753,1781177460000,-423.35002826,0.00028736,7]
[424810755,1781177460000,-329.35086367,0.00028736,7]
[424810757,1781177460000,-319.47413354,0.00028736,7]
[424810760,1781177460000,-329.3270984,0.00028736,7]
[424810754,1781177460000,-374.1318485,0.00028736,7]
[424810767,1781177460000,-1227.0,0.00028763,2]
[424810750,1781177460000,-310.12312838,0.00028736,7]
[424810766,1781177460000,-382.0,0.00028763,2]
[424810768,1781177460000,-361.43074093,0.00028767,2]
[424810763,1781177460000,-154.16588348,0.00028736,7]
[424810765,1781177460000,-1274.0,0.00028763,2]
[424810764,1781177460000,-434.13428546,0.00028736,7]
[424810769,1781177460000,-167.06,0.00028767,13]
[424810771,1781177460000,-167.07,0.00028767,13]
[424810770,1781177460000,-167.06,0.00028767,13]
[424810772,1781177460000,-198.04688191,0.00028767,2]
[424810774,1781177460000,-8421.78,0.00028807,120]
[424810775,1781177460000,-769.24,0.00028838,2]
[424810723,1781177460000,-217.15233878,0.00028495,2]
[424810761,1781177460000,-327.74742382,0.00028736,7]
[424810748,1781177460000,-501.54738587,0.00028736,7]
[424810762,1781177460000,-227.28875913,0.00028736,7]
[424810744,1781177460000,-334.71530749,0.00028736,7]
[424810722,1781177460000,-154.12265554,0.00028495,2]
[424810747,1781177460000,-335.39680768,0.00028736,5]
[424810719,1781177460000,-4853.65,0.0002842,7]
[424810724,1781177460000,-151.0,0.00028495,2]
[424810727,1781177460000,-769.24,0.00028516,30]
[424810736,1781177460000,-355.77484158,0.00028736,7]
[424810728,1781177460000,-361.43074093,0.00028571,2]
[424810737,1781177460000,-338.33026191,0.00028736,7]
[424810738,1781177460000,-414.65490163,0.00028736,7]
[424810773,1781177460000,-157.46172826,0.00028772,2]
[424810730,1781177460000,-208.73,0.00028596,7]
[424810734,1781177460000,-769.24,0.00028677,7]
[424810731,1781177460000,-500.95,0.00028596,30]
[424810732,1781177460000,-720.38,0.000286,7]
[424810745,1781177460000,-170.40919311,0.00028736,7]
[424810729,1781177460000,-156.54,0.00028596,5]
[424810746,1781177460000,-388.0457207,0.00028736,7]
[424810739,1781177460000,-452.62850034,0.00028736,7]
[424810743,1781177460000,-419.22427403,0.00028736,7]
[424810741,1781177460000,-315.69271958,0.00028736,7]
[424810749,1781177460000,-349.5946626,0.00028736,2]
[424810740,1781177460000,-419.74459606,0.00028736,7]
[424810733,1781177460000,-647.0,0.00028646,11]
[424810735,1781177460000,-1042.84706735,0.00028724,3]
[424810742,1781177460000,-383.70250757,0.00028736,7]
[424810819,1781177461000,-100000.0,0.00029009,7]
[424810813,1781177461000,-615.0,0.00029,7]
[424810809,1781177461000,-500.0,0.00029,2]
[424810807,1781177461000,-202.69464539,0.00029,2]
[424810811,1781177461000,-150.0,0.00029,2]
[424810804,1781177461000,-497.38,0.00029,2]
[424810805,1781177461000,-487.17,0.00029,2]
[424810812,1781177461000,-500.0,0.00029,2]
[424810810,1781177461000,-500.0,0.00029,2]
[424810808,1781177461000,-500.0,0.00029,2]
[424810822,1781177461000,-225.18697532,0.00029043,2]
[424810831,1781177461000,-396.0,0.00029213,30]
[424810814,1781177461000,-527.45674201,0.00029,2]
[424810820,1781177461000,-158.71838294,0.00029043,2]
[424810823,1781177461000,-151.0,0.00029043,2]
[424810824,1781177461000,-151.0,0.00029043,2]
[424810816,1781177461000,-150.0,0.00029,2]
[424810815,1781177461000,-150.0,0.00029,2]
[424810817,1781177461000,-769.29,0.00029,30]
[424810818,1781177461000,-9090.0,0.00029,2]
[424810825,1781177461000,-260.4103811,0.00029043,2]
[424810826,1781177461000,-1543.71,0.000291,4]
[424810806,1781177461000,-1568.0,0.00029,2]
[424810821,1781177461000,-154.12265554,0.00029043,2]
[424810797,1781177461000,-41000.0,0.00029,2]
[424810776,1781177461000,-1725.0,0.00028882,2]
[424810800,1781177461000,-745.999999,0.00029,30]
[424810827,1781177461000,-2006.0,0.000291,2]
[424810777,1781177461000,-316.0,0.00028882,2]
[424810781,1781177461000,-512.0,0.000289,2]
[424810778,1781177461000,-200.0,0.000289,2]
[424810779,1781177461000,-200.0,0.000289,2]
[424810782,1781177461000,-260.0,0.00028932,12]
[424810784,1781177461000,-361.43074093,0.00028963,2]
[424810783,1781177461000,-190.0,0.00028932,12]
[424810785,1781177461000,-183.66666667,0.00028971,2]
[424810786,1781177461000,-167.43618432,0.00028971,2]
[424810790,1781177461000,-500.0,0.00029,2]
[424810801,1781177461000,-1250.83731571,0.00029,7]
[424810791,1781177461000,-500.0,0.00029,2]
[424810788,1781177461000,-500.0,0.00029,2]
[424810792,1781177461000,-500.0,0.00029,2]
[424810789,1781177461000,-500.0,0.00029,2]
[424810794,1781177461000,-404.73,0.00029,2]
[424810793,1781177461000,-165.77,0.00029,2]
[424810799,1781177461000,-2323.16554383,0.00029,2]
[424810798,1781177461000,-497.39,0.00029,2]
[424810803,1781177461000,-497.38,0.00029,2]
[424810795,1781177461000,-5476.679063,0.00029,2]
[424810802,1781177461000,-497.38,0.00029,2]
[424810796,1781177461000,-497.39,0.00029,2]
[424810787,1781177461000,-500.0,0.00029,2]
[424810835,1781177461000,-1296.0,0.00029213,30]
[424810780,1781177461000,-341.0,0.000289,2]
[424810829,1781177461000,-287.15074764,0.00029176,2]
[424810859,1781177461000,-507.49539286,0.00029599,7]
[424810861,1781177461000,-678.94275051,0.00029599,7]
[424810862,1781177461000,-629.61689409,0.00029599,7]
[424810863,1781177461000,-473.53907937,0.00029599,7]
[424810865,1781177461000,-575.55376136,0.00029599,7]
[424810869,1781177461000,-582.06858106,0.00029599,7]
[424810864,1781177461000,-182.71470105,0.00029599,7]
[424810868,1781177461000,-340.81838621,0.00029599,7]
[424810867,1781177461000,-502.07296123,0.00029599,7]
[424810866,1781177461000,-628.83641104,0.00029599,7]
[424810870,1781177461000,-224.45666187,0.00029599,7]
[424810860,1781177461000,-621.98235245,0.00029599,7]
[424810872,1781177461000,-197.3616074,0.00029599,7]
[424810871,1781177461000,-194.28621163,0.00029599,7]
[424810875,1781177461000,-524.3919939,0.00029599,2]
[424810873,1781177461000,-503.09521152,0.00029599,5]
[424810876,1781177461000,-177.1852965,0.00029599,7]
[424810878,1781177461000,-203.33452271,0.00029599,7]
[424810877,1781177461000,-238.2991077,0.00029599,7]
[424810880,1781177461000,-465.18469258,0.00029599,7]
[424810879,1781177461000,-239.67197613,0.00029599,7]
[424810882,1781177461000,-277.34493274,0.00029599,7]
[424810832,1781177461000,-277.0,0.00029213,30]
[424810883,1781177461000,-456.50522341,0.00029599,7]
[424810874,1781177461000,-752.3210788,0.00029599,7]
[424810858,1781177461000,-533.66226237,0.00029599,7]
[424810881,1781177461000,-318.5554762,0.00029599,7]
[424810855,1781177461000,-250.76960971,0.00029591,2]
[424810848,1781177461000,-8421.78,0.00029382,120]
[424810828,1781177461000,-361.43074093,0.00029159,2]
[424810830,1781177461000,-478.0,0.00029213,30]
[424810834,1781177461000,-342.0,0.00029213,30]
[424810845,1781177461000,-225.18697532,0.00029314,2]
[424810837,1781177461000,-376.0,0.00029213,30]
[424810846,1781177461000,-361.43074093,0.00029354,2]
[424810839,1781177461000,-269.0,0.0002922,30]
[424810836,1781177461000,-1860.0,0.00029213,30]
[424810840,1781177461000,-1107.0,0.00029262,30]
[424810838,1781177461000,-229.0,0.00029213,30]
[424810841,1781177461000,-404.0,0.00029262,30]
[424810833,1781177461000,-428.0,0.00029213,30]
[424810843,1781177461000,-647.0,0.00029273,12]
[424810844,1781177461000,-155.18434343,0.00029314,2]
[424810847,1781177461000,-150.0,0.00029372,2]
[424810849,1781177461000,-356.0,0.00029471,2]
[424810851,1781177461000,-711.45311862,0.00029589,2]
[424810850,1781177461000,-361.43074093,0.0002955,2]
[424810852,1781177461000,-158.71838294,0.00029591,2]
[424810853,1781177461000,-154.12265554,0.00029591,2]
[424810856,1781177461000,-151.0,0.00029591,2]
[424810854,1781177461000,-233.5188934,0.00029591,2]
[424810857,1781177461000,-270.04556521,0.00029591,2]
[424810842,1781177461000,-425.0,0.00029262,30]
[424810920,1781177462000,-647.0,0.00029899,13]
[424810916,1781177462000,-156.54,0.00029828,5]
[424810915,1781177462000,-8421.78,0.00029823,120]
[424810911,1781177462000,-3643.0,0.00029715,2]
[424810917,1781177462000,-208.73,0.00029828,7]
[424810914,1781177462000,-150.0,0.00029823,7]
[424810913,1781177462000,-361.43074093,0.00029746,2]
[424810912,1781177462000,-6076.0,0.00029715,2]
[424810918,1781177462000,-500.95,0.00029828,30]
[424810921,1781177462000,-419.61800745,0.000299,2]
[424810922,1781177462000,-419.61800745,0.000299,2]
[424810923,1781177462000,-419.61800745,0.000299,2]
[424810929,1781177462000,-419.61800745,0.000299,2]
[424810930,1781177462000,-3197.77586473,0.00029938,2]
[424810931,1781177462000,-6668.3678816,0.0002994,2]
[424810924,1781177462000,-419.61800745,0.000299,2]
[424810925,1781177462000,-419.61800745,0.000299,2]
[424810926,1781177462000,-419.61800745,0.000299,2]
[424810928,1781177462000,-419.61800745,0.000299,2]
[424810927,1781177462000,-419.61800745,0.000299,2]
[424810903,1781177462000,-218.19203511,0.00029599,7]
[424810919,1781177462000,-3197.77586473,0.00029886,2]
[424810904,1781177462000,-308.33176696,0.00029599,7]
[424810896,1781177462000,-191.86335685,0.00029599,7]
[424810905,1781177462000,-202.63739223,0.00029599,7]
[424810890,1781177462000,-561.19777275,0.00029599,7]
[424810884,1781177462000,-635.02504239,0.00029599,7]
[424810891,1781177462000,-494.02629551,0.00029599,7]
[424810892,1781177462000,-305.3963993,0.00029599,7]
[424810887,1781177462000,-295.91212578,0.00029599,7]
[424810885,1781177462000,-209.40975565,0.00029599,7]
[424810886,1781177462000,-243.84435852,0.00029599,7]
[424810889,1781177462000,-293.51301215,0.00029599,7]
[424810888,1781177462000,-251.56308207,0.00029599,7]
[424810893,1781177462000,-238.7975193,0.00029599,7]
[424810908,1781177462000,-316.0,0.000296,2]
[424810894,1781177462000,-479.21120032,0.00029599,7]
[424810900,1781177462000,-493.9906476,0.00029599,7]
[424810898,1781177462000,-259.02532972,0.00029599,7]
[424810897,1781177462000,-489.64123842,0.00029599,7]
[424810899,1781177462000,-238.60497449,0.00029599,7]
[424810901,1781177462000,-491.62113573,0.00029599,7]
[424810902,1781177462000,-454.57751826,0.00029599,7]
[424810907,1781177462000,-268.20558447,0.00029599,7]
[424810910,1781177462000,-350.0,0.00029631,14]
[424810906,1781177462000,-651.20142819,0.00029599,7]
[424810909,1781177462000,-200.0,0.000296,2]
[424810895,1781177462000,-535.15754598,0.00029599,7]
[424810932,1781177462000,-361.43074093,0.00029941,2]
[424810935,1781177462000,-333864.082376,0.00029944,2]
[424810934,1781177462000,-1117.728123,0.00029944,2]
[424810961,1781177462000,-282.0,0.00030137,2]
[424810963,1781177462000,-282.0,0.00030137,2]
[424810968,1781177462000,-158.71838294,0.00030139,2]
[424810962,1781177462000,-150.0,0.00030137,2]
[424810964,1781177462000,-150.0,0.00030137,2]
[424810969,1781177462000,-154.12265554,0.00030139,2]
[424810970,1781177462000,-242.15909246,0.00030139,2]
[424810966,1781177462000,-361.43074093,0.00030137,2]
[424810967,1781177462000,-376.38,0.00030137,30]
[424810981,1781177462000,-839.48919213,0.00030175,7]
[424810972,1781177462000,-152.0,0.00030139,5]
[424810973,1781177462000,-1914.61720518,0.00030165,60]
[424810975,1781177462000,-676.66052382,0.00030175,7]
[424810977,1781177462000,-397.66768498,0.00030175,7]
[424810974,1781177462000,-711.54968316,0.00030175,7]
[424810978,1781177462000,-154.40572779,0.00030175,5]
[424810980,1781177462000,-905.25700067,0.00030175,7]
[424810979,1781177462000,-430.05701229,0.00030175,7]
[424810976,1781177462000,-829.30980326,0.00030175,7]
[424810982,1781177462000,-394.32750378,0.00030175,7]
[424810933,1781177462000,-925.4559419,0.00029944,2]
[424810965,1781177462000,-282.0,0.00030137,2]
[424810958,1781177462000,-167.07,0.00030137,13]
[424810971,1781177462000,-151.0,0.00030139,2]
[424810957,1781177462000,-167.06,0.00030137,13]
[424810940,1781177462000,-6929.84,0.0003,2]
[424810953,1781177462000,-98831.0,0.0003013,2]
[424810938,1781177462000,-189.889999,0.0003,11]
[424810937,1781177462000,-369.3169676,0.0003,30]
[424810939,1781177462000,-650.0,0.0003,2]
[424810936,1781177462000,-48395.19484,0.00029944,2]
[424810941,1781177462000,-271.54,0.0003,2]
[424810943,1781177462000,-284.91992931,0.0003,30]
[424810944,1781177462000,-3197.77586473,0.00030032,2]
[424810949,1781177462000,-720.38,0.000301,7]
[424810947,1781177462000,-171.13,0.00030082,120]
[424810945,1781177462000,-3197.77586473,0.00030042,2]
[424810955,1781177462000,-277.53,0.00030137,5]
[424810946,1781177462000,-3197.77586473,0.00030056,2]
[424810948,1781177462000,-3197.77586473,0.00030088,2]
[424810950,1781177462000,-4853.65,0.00030104,7]
[424810959,1781177462000,-175.51159872,0.00030137,40]
[424810951,1781177462000,-3197.77586473,0.00030117,2]
[424810960,1781177462000,-150.0,0.00030137,2]
[424810952,1781177462000,-152459.77019181,0.0003013,2]
[424810956,1781177462000,-167.06,0.00030137,13]
[424810942,1781177462000,-4608.8571364,0.0003,2]
[424810954,1781177462000,-625.07,0.00030137,2]
[424811023,1781177463000,-458.09459895,0.00030175,7]
[424811015,1781177463000,-487.68871705,0.00030175,7]
[424811016,1781177463000,-418.8195113,0.00030175,7]
[424811018,1781177463000,-503.12616413,0.00030175,7]
[424811011,1781177463000,-608.67363122,0.00030175,7]
[424811014,1781177463000,-212.41417011,0.00030175,7]
[424811009,1781177463000,-343.44569919,0.00030175,7]
[424811012,1781177463000,-400.73578953,0.00030175,7]
[424811024,1781177463000,-477.59503861,0.00030175,7]
[424811017,1781177463000,-591.82425155,0.00030175,7]
[424811019,1781177463000,-224.6116695,0.00030175,7]
[424811029,1781177463000,-383.72671369,0.00030175,7]
[424811021,1781177463000,-748.263697,0.00030175,7]
[424811022,1781177463000,-658.70172735,0.00030175,7]
[424811026,1781177463000,-182.94161993,0.00030175,7]
[424811034,1781177463000,-658.65419679,0.00030175,7]
[424811028,1781177463000,-652.85498456,0.00030175,7]
[424811025,1781177463000,-638.94826709,0.00030175,7]
[424811027,1781177463000,-713.54339464,0.00030175,7]
[424811030,1781177463000,-179.2791174,0.00030175,7]
[424811031,1781177463000,-518.05065945,0.00030175,7]
[424811013,1781177463000,-846.70005652,0.00030175,7]
[424811020,1781177463000,-587.02602431,0.00030175,7]
[424811007,1781177463000,-620.24625677,0.00030175,7]
[424810984,1781177463000,-365.42940211,0.00030175,7]
[424811010,1781177463000,-554.68986548,0.00030175,7]
[424810987,1781177463000,-316.32513737,0.00030175,7]
[424810983,1781177463000,-631.38543916,0.00030175,7]
[424810985,1781177463000,-767.40501514,0.00030175,7]
[424810988,1781177463000,-228.23672635,0.00030175,7]
[424810990,1781177463000,-669.43061498,0.00030175,7]
[424810989,1781177463000,-202.05758571,0.00030175,7]
[424810991,1781177463000,-511.22757932,0.00030175,7]
[424810986,1781177463000,-838.44854806,0.00030175,7]
[424810992,1781177463000,-186.65434097,0.00030175,7]
[424810995,1781177463000,-776.09144141,0.00030175,7]
[424810997,1781177463000,-185.52693481,0.00030175,7]
[424810999,1781177463000,-670.79361537,0.00030175,5]
[424811000,1781177463000,-1003.09477173,0.00030175,7]
[424810994,1781177463000,-324.10209189,0.00030175,7]
[424811001,1781177463000,-699.1893252,0.00030175,2]
[424810996,1781177463000,-310.926811,0.00030175,7]
[424810998,1781177463000,-394.7232148,0.00030175,7]
[424811002,1781177463000,-354.37059299,0.00030175,7]
[424811033,1781177463000,-477.20994897,0.00030175,7]
[424811004,1781177463000,-336.2174538,0.00030175,2]
[424811003,1781177463000,-476.5982154,0.00030175,7]
[424811006,1781177463000,-479.34395227,0.00030175,7]
[424811005,1781177463000,-277.16920904,0.00030175,7]
[424811008,1781177463000,-477.8332143,0.00030175,7]
[424811032,1781177463000,-360.28245053,0.00030175,7]
[424810993,1781177463000,-216.48070196,0.00030175,7]
[424811037,1781177463000,-186.64768682,0.00030175,7]
[424811061,1781177463000,-293.97,0.00030262,7]
[424811058,1781177463000,-1107.0,0.00030262,30]
[424811068,1781177463000,-647.0,0.00030525,13]
[424811067,1781177463000,-1000.0,0.000305,2]
[424811077,1781177463000,-251.11897888,0.00030687,2]
[424811073,1781177463000,-151.0,0.00030685,2]
[424811072,1781177463000,-621.78829552,0.00030685,2]
[424811071,1781177463000,-159.87546608,0.00030683,2]
[424811076,1781177463000,-154.12265568,0.00030687,2]
[424811070,1781177463000,-155.18434344,0.00030683,2]
[424811075,1781177463000,-158.71838294,0.00030687,2]
[424811069,1781177463000,-376.38,0.00030635,30]
[424811078,1781177463000,-151.0,0.00030687,2]
[424811080,1781177463000,-250.0,0.00030716,7]
[424811085,1781177463000,-1036.63725408,0.00030751,7]
[424811081,1781177463000,-250.0,0.00030716,7]
[424811082,1781177463000,-3197.77586473,0.00030722,2]
[424811086,1781177463000,-1131.57125084,0.00030751,7]
[424811083,1781177463000,-889.43710395,0.00030751,7]
[424811079,1781177463000,-3197.77586473,0.00030697,2]
[424811087,1781177463000,-1049.36149016,0.00030751,7]
[424811084,1781177463000,-845.82565477,0.00030751,7]